[Event "Titled Tuesday Blitz February 14 Late 2023"]
[White "Nasuta, Grzegorz"]
[Black "Al-Tarboush, Ward"]
[WhiteFideId "1141686"]
[BlackFideId "7601450"]
[WhiteElo "2552"]
[BlackElo "2256"]
[Result "0-1"]
[Round "09"]
[TimeControl "180+2"]
[Date "2023.02.14"]
[WhiteClock "0:00:02"]
[BlackClock "0:00:36"]

1. e4 {[%clk 0:03:00]}  e5 {[%clk 0:02:56]} 2. Nf3 {[%clk 0:03:01]}  Nf6 {[%clk 0:02:55]} 3. d4 {[%clk 0:02:59]}  Nxe4 {[%clk 0:02:51]} 4. dxe5 {[%clk 0:02:59]}  d5 {[%clk 0:02:48]} 5. Nbd2 {[%clk 0:02:59]}  Nc6 {[%clk 0:02:46]} 6. Nxe4 {[%clk 0:02:58]}  dxe4 {[%clk 0:02:47]} 7. Qxd8+ {[%clk 0:02:58]}  Kxd8 {[%clk 0:02:39]} 8. Ng5 {[%clk 0:02:57]}  Nxe5 {[%clk 0:02:40]} 9. Bf4 {[%clk 0:02:50]}  h6 {[%clk 0:02:31]} 10. O-O-O+ {[%clk 0:02:45]}  Bd7 {[%clk 0:02:25]} 11. Nxe4 {[%clk 0:02:41]}  Ng6 {[%clk 0:02:25]} 12. Bg3 {[%clk 0:02:37]}  f5 {[%clk 0:02:24]} 13. Nc3 {[%clk 0:02:17]}  f4 {[%clk 0:02:22]} 14. Bd3 {[%clk 0:02:17]}  fxg3 {[%clk 0:02:14]} 15. Bxg6 {[%clk 0:02:17]}  gxf2 {[%clk 0:02:14]} 16. Ne4 {[%clk 0:02:07]}  Bd6 {[%clk 0:02:07]} 17. Nxd6 {[%clk 0:02:01]}  cxd6 {[%clk 0:02:08]} 18. Rhf1 {[%clk 0:02:00]}  Rf8 {[%clk 0:02:03]} 19. Rd2 {[%clk 0:01:30]}  Rf6 {[%clk 0:01:51]} 20. Be4 {[%clk 0:01:22]}  Kc7 {[%clk 0:01:51]} 21. Rdxf2 {[%clk 0:01:22]}  Raf8 {[%clk 0:01:51]} 22. Rxf6 {[%clk 0:01:20]}  Rxf6 {[%clk 0:01:52]} 23. Rxf6 {[%clk 0:01:19]}  gxf6 {[%clk 0:01:53]} 24. Kd2 {[%clk 0:01:20]}  b6 {[%clk 0:01:39]} 25. Ke3 {[%clk 0:01:19]}  Be6 {[%clk 0:01:36]} 26. a3 {[%clk 0:01:19]}  Kd7 {[%clk 0:01:35]} 27. Kf4 {[%clk 0:01:15]}  Ke7 {[%clk 0:01:35]} 28. g3 {[%clk 0:01:09]}  Kf7 {[%clk 0:01:34]} 29. c3 {[%clk 0:01:04]}  a5 {[%clk 0:01:30]} 30. b4 {[%clk 0:00:58]}  Ke7 {[%clk 0:01:29]} 31. Bf5 {[%clk 0:00:50]}  Bf7 {[%clk 0:01:27]} 32. bxa5 {[%clk 0:00:46]}  bxa5 {[%clk 0:01:26]} 33. Ke4 {[%clk 0:00:46]}  Kd8 {[%clk 0:01:22]} 34. Bg4 {[%clk 0:00:41]}  Ke7 {[%clk 0:01:18]} 35. Bf5 {[%clk 0:00:30]}  Kd8 {[%clk 0:01:17]} 36. Kd4 {[%clk 0:00:31]}  Kc7 {[%clk 0:01:17]} 37. Bg4 {[%clk 0:00:30]}  Kb6 {[%clk 0:01:16]} 38. Bf3 {[%clk 0:00:27]}  Kb5 {[%clk 0:01:12]} 39. Bd1 {[%clk 0:00:27]}  Be6 {[%clk 0:01:07]} 40. Bc2 {[%clk 0:00:21]}  Bf7 {[%clk 0:01:05]} 41. Bd1 {[%clk 0:00:14]}  Be6 {[%clk 0:01:05]} 42. a4+ {[%clk 0:00:14]}  Kb6 {[%clk 0:01:04]} 43. Bf3 {[%clk 0:00:15]}  Bb3 {[%clk 0:01:00]} 44. Bd5 {[%clk 0:00:06]}  Bxa4 {[%clk 0:00:59]} 45. Kc4 {[%clk 0:00:07]}  Bb5+ {[%clk 0:00:56]} 46. Kb3 {[%clk 0:00:07]}  Kc5 {[%clk 0:00:57]} 47. Bf7 {[%clk 0:00:07]}  Bc6 {[%clk 0:00:54]} 48. Bg6 {[%clk 0:00:06]}  d5 {[%clk 0:00:46]} 49. Bh7 {[%clk 0:00:04]}  d4 {[%clk 0:00:46]} 50. cxd4+ {[%clk 0:00:04]}  Kxd4 {[%clk 0:00:47]} 51. Bf5 {[%clk 0:00:01]}  Ke3 {[%clk 0:00:42]} 52. Bg4 {[%clk 0:00:02]}  Kf2 {[%clk 0:00:39]} 53. Bf5 {[%clk 0:00:02]}  Kg2 {[%clk 0:00:37]} 54. h4 {[%clk 0:00:02]}  Kxg3 {[%clk 0:00:36]} 55. Be4 {[%clk 0:00:02]}  Bxe4 {[%clk 0:00:36]} 0-1


[Site "https://www.chess.com"]

[Event "Titled Tuesday Blitz February 14 Late 2023"]
[White "Lucassen, Mickey"]
[Black "Golubka, Petro"]
[WhiteFideId "12919110"]
[BlackFideId "14114224"]
[WhiteElo "2023"]
[BlackElo "2371"]
[Result "0-1"]
[Round "09"]
[TimeControl "180+2"]
[Date "2023.02.14"]
[WhiteClock "0:00:03"]
[BlackClock "0:00:14"]

1. e4 {[%clk 0:03:00]}  c5 {[%clk 0:01:38]} 2. Nf3 {[%clk 0:02:59]}  Nc6 {[%clk 0:01:38]} 3. d4 {[%clk 0:02:59]}  cxd4 {[%clk 0:01:39]} 4. Nxd4 {[%clk 0:03:00]}  e5 {[%clk 0:01:39]} 5. Nb5 {[%clk 0:02:59]}  d6 {[%clk 0:01:39]} 6. c4 {[%clk 0:02:57]}  a6 {[%clk 0:01:40]} 7. N5a3 {[%clk 0:02:55]}  Nf6 {[%clk 0:01:41]} 8. Nc3 {[%clk 0:02:54]}  Be7 {[%clk 0:01:42]} 9. Be2 {[%clk 0:02:54]}  O-O {[%clk 0:01:43]} 10. Nc2 {[%clk 0:02:53]}  Be6 {[%clk 0:01:44]} 11. O-O {[%clk 0:02:52]}  Rc8 {[%clk 0:01:44]} 12. b3 {[%clk 0:02:51]}  Re8 {[%clk 0:01:45]} 13. Bb2 {[%clk 0:02:49]}  Bf8 {[%clk 0:01:46]} 14. Bf3 {[%clk 0:02:45]}  h6 {[%clk 0:01:46]} 15. Nd5 {[%clk 0:02:44]}  b5 {[%clk 0:01:43]} 16. Nce3 {[%clk 0:02:39]}  bxc4 {[%clk 0:01:42]} 17. Nxc4 {[%clk 0:02:39]}  Bxd5 {[%clk 0:01:40]} 18. exd5 {[%clk 0:02:39]}  Na5 {[%clk 0:01:38]} 19. Be2 {[%clk 0:02:29]}  Nxc4 {[%clk 0:01:36]} 20. Bxc4 {[%clk 0:02:28]}  a5 {[%clk 0:01:37]} 21. a4 {[%clk 0:02:26]}  Qb6 {[%clk 0:01:35]} 22. Qd2 {[%clk 0:02:20]}  Ne4 {[%clk 0:01:33]} 23. Qe2 {[%clk 0:02:18]}  Nc5 {[%clk 0:01:32]} 24. Qe3 {[%clk 0:02:15]}  Be7 {[%clk 0:01:25]} 25. Ba3 {[%clk 0:02:11]}  Bg5 {[%clk 0:01:23]} 26. Bxc5 {[%clk 0:02:10]}  Rxc5 {[%clk 0:01:22]} 27. Qe4 {[%clk 0:02:08]}  Re7 {[%clk 0:00:51]} 28. h4 {[%clk 0:02:01]}  Bf4 {[%clk 0:00:45]} 29. Bd3 {[%clk 0:01:55]}  g6 {[%clk 0:00:45]} 30. Bc4 {[%clk 0:01:24]}  f5 {[%clk 0:00:33]} 31. Qf3 {[%clk 0:01:24]}  h5 {[%clk 0:00:33]} 32. Kh1 {[%clk 0:01:20]}  Kg7 {[%clk 0:00:32]} 33. g3 {[%clk 0:01:14]}  Bd2 {[%clk 0:00:31]} 34. Qd3 {[%clk 0:01:10]}  Bb4 {[%clk 0:00:30]} 35. Rad1 {[%clk 0:01:08]}  e4 {[%clk 0:00:29]} 36. Qd4+ {[%clk 0:01:08]}  Kh7 {[%clk 0:00:28]} 37. Qf6 {[%clk 0:01:06]}  Qc7 {[%clk 0:00:24]} 38. Bb5 {[%clk 0:00:52]}  Bc3 {[%clk 0:00:23]} 39. Qg5 {[%clk 0:00:49]}  Bg7 {[%clk 0:00:23]} 40. Rfe1 {[%clk 0:00:37]}  Bh6 {[%clk 0:00:20]} 41. Qf6 {[%clk 0:00:37]}  Bg7 {[%clk 0:00:19]} 42. Qg5 {[%clk 0:00:37]}  Rf7 {[%clk 0:00:19]} 43. Qd2 {[%clk 0:00:18]}  Bh6 {[%clk 0:00:20]} 44. Qd4 {[%clk 0:00:16]}  Bg7 {[%clk 0:00:19]} 45. Qd2 {[%clk 0:00:08]}  Bc3 {[%clk 0:00:20]} 46. Qg5 {[%clk 0:00:08]}  Bxe1 {[%clk 0:00:20]} 47. Rxe1 {[%clk 0:00:09]}  Qe7 {[%clk 0:00:20]} 48. Qf4 {[%clk 0:00:09]}  Qf6 {[%clk 0:00:19]} 49. Bc4 {[%clk 0:00:09]}  Rd7 {[%clk 0:00:18]} 50. Rxe4 {[%clk 0:00:09]}  Qa1+ {[%clk 0:00:17]} 51. Kh2 {[%clk 0:00:08]}  fxe4 {[%clk 0:00:16]} 52. Qxe4 {[%clk 0:00:07]}  Qg7 {[%clk 0:00:16]} 53. Qe6 {[%clk 0:00:06]}  Qf7 {[%clk 0:00:16]} 54. Qe4 {[%clk 0:00:05]}  Qxf2+ {[%clk 0:00:15]} 55. Kh3 {[%clk 0:00:05]}  Qf7 {[%clk 0:00:15]} 56. Bd3 {[%clk 0:00:05]}  Re7 {[%clk 0:00:15]} 57. Qg4 {[%clk 0:00:03]}  hxg4+ {[%clk 0:00:14]} 0-1


[Site "https://www.chess.com"]

[Event "Titled Tuesday Blitz February 14 Late 2023"]
[White "Oro, Faustino"]
[Black "Aldokhin, Ivan"]
[WhiteFideId "20000197"]
[BlackFideId "24115720"]
[WhiteElo "2269"]
[BlackElo "2413"]
[Result "1/2-1/2"]
[Round "09"]
[TimeControl "180+2"]
[Date "2023.02.14"]
[WhiteClock "0:00:09"]
[BlackClock "0:00:02"]

1. e4 {[%clk 0:02:59]}  c5 {[%clk 0:02:19]} 2. Nf3 {[%clk 0:02:58]}  e6 {[%clk 0:02:19]} 3. d4 {[%clk 0:02:58]}  cxd4 {[%clk 0:02:20]} 4. Nxd4 {[%clk 0:02:59]}  a6 {[%clk 0:02:20]} 5. Bd3 {[%clk 0:02:55]}  Qc7 {[%clk 0:02:20]} 6. O-O {[%clk 0:02:54]}  Nf6 {[%clk 0:02:21]} 7. Nc3 {[%clk 0:02:42]}  Bd6 {[%clk 0:02:14]} 8. h3 {[%clk 0:02:30]}  Nc6 {[%clk 0:02:14]} 9. Be3 {[%clk 0:02:17]}  Bf4 {[%clk 0:02:06]} 10. Qf3 {[%clk 0:02:06]}  g5 {[%clk 0:01:41]} 11. Nxc6 {[%clk 0:01:57]}  dxc6 {[%clk 0:01:41]} 12. Ne2 {[%clk 0:01:55]}  e5 {[%clk 0:01:30]} 13. g3 {[%clk 0:01:53]}  Bxh3 {[%clk 0:00:55]} 14. gxf4 {[%clk 0:01:51]}  Bg4 {[%clk 0:00:55]} 15. Qg3 {[%clk 0:01:12]}  Bxe2 {[%clk 0:00:54]} 16. fxg5 {[%clk 0:01:11]}  Bxf1 {[%clk 0:00:52]} 17. Rxf1 {[%clk 0:01:11]}  O-O-O {[%clk 0:00:29]} 18. Qf3 {[%clk 0:00:59]}  Ne8 {[%clk 0:00:18]} 19. Qf5+ {[%clk 0:00:42]}  Kb8 {[%clk 0:00:15]} 20. f4 {[%clk 0:00:42]}  exf4 {[%clk 0:00:06]} 21. Bxf4 {[%clk 0:00:42]}  Nd6 {[%clk 0:00:07]} 22. Qf6 {[%clk 0:00:42]}  Ka8 {[%clk 0:00:06]} 23. Kh1 {[%clk 0:00:37]}  Rhe8 {[%clk 0:00:05]} 24. e5 {[%clk 0:00:37]}  Nc8 {[%clk 0:00:02]} 25. e6 {[%clk 0:00:37]}  Qb6 {[%clk 0:00:02]} 26. exf7 {[%clk 0:00:37]}  Rf8 {[%clk 0:00:03]} 27. Bxh7 {[%clk 0:00:33]}  Qb5 {[%clk 0:00:03]} 28. Bd3 {[%clk 0:00:31]}  Qd5+ {[%clk 0:00:03]} 29. Kg1 {[%clk 0:00:31]}  Rxf7 {[%clk 0:00:04]} 30. Qc3 {[%clk 0:00:25]}  Rdf8 {[%clk 0:00:03]} 31. Be3 {[%clk 0:00:22]}  Rxf1+ {[%clk 0:00:03]} 32. Bxf1 {[%clk 0:00:23]}  Qf3 {[%clk 0:00:03]} 33. Qd3 {[%clk 0:00:16]}  Qg3+ {[%clk 0:00:03]} 34. Bg2 {[%clk 0:00:16]}  Nd6 {[%clk 0:00:03]} 35. Bc5 {[%clk 0:00:14]}  Qxd3 {[%clk 0:00:03]} 36. cxd3 {[%clk 0:00:15]}  Rd8 {[%clk 0:00:03]} 37. g6 {[%clk 0:00:15]}  Nf5 {[%clk 0:00:03]} 38. Be4 {[%clk 0:00:16]}  Ng7 {[%clk 0:00:02]} 39. Be7 {[%clk 0:00:16]}  Re8 {[%clk 0:00:02]} 40. Bf6 {[%clk 0:00:16]}  Nh5 {[%clk 0:00:03]} 41. Bc3 {[%clk 0:00:16]}  Rg8 {[%clk 0:00:03]} 42. Kf2 {[%clk 0:00:14]}  Nf4 {[%clk 0:00:03]} 43. g7 {[%clk 0:00:14]}  Nh5 {[%clk 0:00:03]} 44. Bh7 {[%clk 0:00:14]}  Rxg7 {[%clk 0:00:03]} 45. Bxg7 {[%clk 0:00:15]}  Nxg7 {[%clk 0:00:04]} 46. Ke3 {[%clk 0:00:15]}  Ne6 {[%clk 0:00:04]} 47. Bg8 {[%clk 0:00:15]}  Nc7 {[%clk 0:00:04]} 48. Kd4 {[%clk 0:00:15]}  Kb8 {[%clk 0:00:04]} 49. Kc5 {[%clk 0:00:16]}  Kc8 {[%clk 0:00:04]} 50. d4 {[%clk 0:00:15]}  Na8 {[%clk 0:00:03]} 51. Kd6 {[%clk 0:00:15]}  Nb6 {[%clk 0:00:02]} 52. b3 {[%clk 0:00:15]}  Na8 {[%clk 0:00:02]} 53. Be6+ {[%clk 0:00:14]}  Kb8 {[%clk 0:00:03]} 54. Kd7 {[%clk 0:00:14]}  Nb6+ {[%clk 0:00:03]} 55. Kd8 {[%clk 0:00:14]}  Na8 {[%clk 0:00:02]} 56. b4 {[%clk 0:00:12]}  Ka7 {[%clk 0:00:03]} 57. a4 {[%clk 0:00:12]}  Kb6 {[%clk 0:00:03]} 58. Bb3 {[%clk 0:00:12]}  a5 {[%clk 0:00:02]} 59. bxa5+ {[%clk 0:00:11]}  Kxa5 {[%clk 0:00:03]} 60. Kc8 {[%clk 0:00:12]}  Kb6 {[%clk 0:00:02]} 61. Kd7 {[%clk 0:00:09]}  Ka6 {[%clk 0:00:02]} 62. Kd6 {[%clk 0:00:07]}  Nb6 {[%clk 0:00:02]} 63. Kc7 {[%clk 0:00:07]}  Na8+ {[%clk 0:00:02]} 64. Kb8 {[%clk 0:00:08]}  Nb6 {[%clk 0:00:02]} 65. Bc2 {[%clk 0:00:08]}  Nd5 {[%clk 0:00:02]} 66. Bd3+ {[%clk 0:00:08]}  Kb6 {[%clk 0:00:03]} 67. a5+ {[%clk 0:00:08]}  Kxa5 {[%clk 0:00:03]} 68. Kxb7 {[%clk 0:00:09]}  Nb4 {[%clk 0:00:03]} 69. Bc4 {[%clk 0:00:09]}  Nc2 {[%clk 0:00:01]} 70. d5 {[%clk 0:00:08]}  cxd5 {[%clk 0:00:02]} 71. Bxd5 {[%clk 0:00:09]} 1/2-1/2


[Site "https://www.chess.com"]

[Event "Titled Tuesday Blitz February 14 Late 2023"]
[White "Alex_Sahakyan2006"]
[Black "Fiorito, Francisco"]
[BlackFideId "180165"]
[WhiteElo "2696"]
[BlackElo "2305"]
[Result "0-1"]
[Round "09"]
[TimeControl "180+2"]
[Date "2023.02.14"]
[WhiteClock "0:00:01"]
[BlackClock "0:00:23"]

1. c4 {[%clk 0:02:59]}  Nf6 {[%clk 0:02:58]} 2. Nc3 {[%clk 0:02:57]}  b6 {[%clk 0:02:55]} 3. e4 {[%clk 0:02:55]}  e5 {[%clk 0:02:55]} 4. Nf3 {[%clk 0:02:51]}  Nc6 {[%clk 0:02:54]} 5. d3 {[%clk 0:02:38]}  Bc5 {[%clk 0:02:53]} 6. Nxe5 {[%clk 0:02:11]}  Nxe5 {[%clk 0:01:38]} 7. d4 {[%clk 0:02:10]}  Bb4 {[%clk 0:01:37]} 8. dxe5 {[%clk 0:02:10]}  Nxe4 {[%clk 0:01:37]} 9. Qf3 {[%clk 0:01:32]}  Bb7 {[%clk 0:01:30]} 10. Bd2 {[%clk 0:01:32]}  Bxc3 {[%clk 0:00:40]} 11. Bxc3 {[%clk 0:01:30]}  O-O {[%clk 0:00:40]} 12. Bd4 {[%clk 0:00:21]}  Qe7 {[%clk 0:00:39]} 13. O-O-O {[%clk 0:00:18]}  c5 {[%clk 0:00:35]} 14. Bc3 {[%clk 0:00:09]}  Qg5+ {[%clk 0:00:35]} 15. Kb1 {[%clk 0:00:05]}  Qg6 {[%clk 0:00:29]} 16. Qd3 {[%clk 0:00:01]}  Nxf2 {[%clk 0:00:27]} 17. Qxg6 {[%clk 0:00:01]}  hxg6 {[%clk 0:00:28]} 18. Rxd7 {[%clk 0:00:01]}  Be4+ {[%clk 0:00:28]} 19. Kc1 {[%clk 0:00:01]}  Nxh1 {[%clk 0:00:28]} 20. e6 {[%clk 0:00:01]}  Bf5 {[%clk 0:00:23]} 0-1


[Site "https://www.chess.com"]

[Event "Titled Tuesday Blitz February 14 Late 2023"]
[White "Jovic, Stanoje"]
[Black "Han, Yichen"]
[WhiteFideId "905020"]
[BlackFideId "1054430"]
[WhiteElo "2075"]
[BlackElo "2413"]
[Result "1-0"]
[Round "09"]
[TimeControl "180+2"]
[Date "2023.02.14"]
[WhiteClock "0:00:52"]
[BlackClock "0:00:45"]

1. c4 {[%clk 0:03:00]}  e5 {[%clk 0:02:55]} 2. g3 {[%clk 0:03:01]}  Nc6 {[%clk 0:02:54]} 3. Bg2 {[%clk 0:03:01]}  f5 {[%clk 0:02:54]} 4. Nh3 {[%clk 0:02:57]}  Nf6 {[%clk 0:02:54]} 5. O-O {[%clk 0:02:57]}  Be7 {[%clk 0:02:49]} 6. Nc3 {[%clk 0:02:54]}  O-O {[%clk 0:02:49]} 7. Nd5 {[%clk 0:02:53]}  d6 {[%clk 0:02:48]} 8. d3 {[%clk 0:02:52]}  Qe8 {[%clk 0:02:47]} 9. Rb1 {[%clk 0:02:51]}  a5 {[%clk 0:02:46]} 10. Nxc7 {[%clk 0:02:50]}  Qh5 {[%clk 0:02:45]} 11. e3 {[%clk 0:02:43]}  Qxd1 {[%clk 0:02:36]} 12. Rxd1 {[%clk 0:02:43]}  Rb8 {[%clk 0:02:37]} 13. f4 {[%clk 0:02:38]}  Ng4 {[%clk 0:02:28]} 14. Nf2 {[%clk 0:02:27]}  Nxf2 {[%clk 0:02:24]} 15. Kxf2 {[%clk 0:02:28]}  Bd8 {[%clk 0:02:24]} 16. Nb5 {[%clk 0:02:25]}  Be7 {[%clk 0:02:20]} 17. a3 {[%clk 0:02:21]}  Bd7 {[%clk 0:02:17]} 18. b4 {[%clk 0:02:21]}  axb4 {[%clk 0:02:16]} 19. axb4 {[%clk 0:02:21]}  Ra8 {[%clk 0:02:17]} 20. Bd2 {[%clk 0:02:12]}  Ra2 {[%clk 0:02:15]} 21. Nc3 {[%clk 0:02:08]}  Rc2 {[%clk 0:02:11]} 22. Nd5 {[%clk 0:02:05]}  Ra8 {[%clk 0:02:08]} 23. b5 {[%clk 0:02:03]}  Raa2 {[%clk 0:02:05]} 24. bxc6 {[%clk 0:01:55]}  bxc6 {[%clk 0:02:02]} 25. Nxe7+ {[%clk 0:01:53]}  Kf7 {[%clk 0:02:03]} 26. Bxc6 {[%clk 0:01:45]}  Rxd2+ {[%clk 0:01:55]} 27. Rxd2 {[%clk 0:01:44]}  Rxd2+ {[%clk 0:01:56]} 28. Ke1 {[%clk 0:01:44]}  Rxh2 {[%clk 0:01:56]} 29. Rb7 {[%clk 0:01:43]}  Bxc6 {[%clk 0:01:22]} 30. Nxc6+ {[%clk 0:01:42]}  Kf6 {[%clk 0:01:23]} 31. fxe5+ {[%clk 0:01:35]}  dxe5 {[%clk 0:01:24]} 32. Rb5 {[%clk 0:01:31]}  e4 {[%clk 0:01:20]} 33. d4 {[%clk 0:01:29]}  Rg2 {[%clk 0:01:20]} 34. Rb6 {[%clk 0:01:27]}  Rxg3 {[%clk 0:01:19]} 35. Nb4+ {[%clk 0:01:22]}  Kg5 {[%clk 0:01:15]} 36. Nd5 {[%clk 0:01:21]}  h5 {[%clk 0:01:13]} 37. Rb8 {[%clk 0:01:20]}  h4 {[%clk 0:01:10]} 38. Rh8 {[%clk 0:01:16]}  Rg1+ {[%clk 0:01:07]} 39. Kd2 {[%clk 0:01:15]}  Kg4 {[%clk 0:01:05]} 40. c5 {[%clk 0:01:14]}  Rg2+ {[%clk 0:00:55]} 41. Kc3 {[%clk 0:01:12]}  Rg1 {[%clk 0:00:56]} 42. Kc4 {[%clk 0:01:10]}  h3 {[%clk 0:00:55]} 43. c6 {[%clk 0:01:10]}  Kg3 {[%clk 0:00:51]} 44. c7 {[%clk 0:01:08]}  Rc1+ {[%clk 0:00:51]} 45. Nc3 {[%clk 0:01:08]}  h2 {[%clk 0:00:49]} 46. c8=Q {[%clk 0:01:08]}  h1=Q {[%clk 0:00:49]} 47. Qc7+ {[%clk 0:01:05]}  Kf2 {[%clk 0:00:48]} 48. Rxh1 {[%clk 0:01:02]}  Rxh1 {[%clk 0:00:49]} 49. Qf4+ {[%clk 0:01:01]}  Ke1 {[%clk 0:00:48]} 50. Qxf5 {[%clk 0:00:58]}  Rh8 {[%clk 0:00:48]} 51. Qxe4 {[%clk 0:00:57]}  g5 {[%clk 0:00:47]} 52. Qg2 {[%clk 0:00:53]}  Rc8+ {[%clk 0:00:44]} 53. Kd3 {[%clk 0:00:52]}  Rxc3+ {[%clk 0:00:44]} 54. Kxc3 {[%clk 0:00:52]}  g4 {[%clk 0:00:44]} 55. Kd3 {[%clk 0:00:52]}  g3 {[%clk 0:00:45]} 56. Qe2# {[%clk 0:00:52]} 1-0


[Site "https://www.chess.com"]

[Event "Titled Tuesday Blitz February 14 Late 2023"]
[White "Gubajdullin, Alexei"]
[Black "Nunez V, Gustavo Eduardo"]
[WhiteFideId "4141202"]
[BlackFideId "4403690"]
[WhiteElo "2285"]
[BlackElo "2212"]
[Result "1-0"]
[Round "09"]
[TimeControl "180+2"]
[Date "2023.02.14"]
[WhiteClock "0:00:02"]
[BlackClock "0:00:01"]

1. d4 {[%clk 0:02:59]}  Nf6 {[%clk 0:02:59]} 2. Nf3 {[%clk 0:02:59]}  g6 {[%clk 0:02:57]} 3. Bf4 {[%clk 0:02:58]}  Bg7 {[%clk 0:02:57]} 4. e3 {[%clk 0:02:59]}  O-O {[%clk 0:02:57]} 5. Be2 {[%clk 0:02:59]}  d6 {[%clk 0:02:58]} 6. O-O {[%clk 0:02:59]}  h6 {[%clk 0:02:58]} 7. h3 {[%clk 0:02:55]}  Nbd7 {[%clk 0:02:58]} 8. c4 {[%clk 0:02:55]}  c6 {[%clk 0:02:56]} 9. Nc3 {[%clk 0:02:54]}  Qc7 {[%clk 0:02:57]} 10. Bh2 {[%clk 0:02:54]}  b6 {[%clk 0:02:54]} 11. Rc1 {[%clk 0:02:52]}  a5 {[%clk 0:02:53]} 12. a3 {[%clk 0:02:51]}  Ba6 {[%clk 0:02:48]} 13. b4 {[%clk 0:02:50]}  axb4 {[%clk 0:02:49]} 14. axb4 {[%clk 0:02:48]}  c5 {[%clk 0:02:49]} 15. dxc5 {[%clk 0:02:42]}  bxc5 {[%clk 0:02:50]} 16. b5 {[%clk 0:02:42]}  Bb7 {[%clk 0:02:50]} 17. Qb3 {[%clk 0:02:37]}  Ra5 {[%clk 0:02:42]} 18. Ne1 {[%clk 0:02:08]}  Rfa8 {[%clk 0:02:40]} 19. Nc2 {[%clk 0:02:07]}  Ne4 {[%clk 0:02:37]} 20. Nxe4 {[%clk 0:01:59]}  Bxe4 {[%clk 0:02:38]} 21. Bd3 {[%clk 0:01:55]}  Qb7 {[%clk 0:02:36]} 22. f3 {[%clk 0:01:47]}  Bxd3 {[%clk 0:02:35]} 23. Qxd3 {[%clk 0:01:46]}  Ra2 {[%clk 0:02:28]} 24. Rb1 {[%clk 0:01:39]}  Nb6 {[%clk 0:02:25]} 25. Rfc1 {[%clk 0:01:27]}  R8a4 {[%clk 0:02:25]} 26. Ne1 {[%clk 0:01:26]}  R4a3 {[%clk 0:02:16]} 27. Rb3 {[%clk 0:01:22]}  Qa7 {[%clk 0:02:16]} 28. Rxa3 {[%clk 0:01:19]}  Rxa3 {[%clk 0:02:15]} 29. Qe4 {[%clk 0:01:18]}  Ra1 {[%clk 0:02:05]} 30. Rxa1 {[%clk 0:01:17]}  Qxa1 {[%clk 0:02:06]} 31. Bg3 {[%clk 0:01:17]}  Bf6 {[%clk 0:01:58]} 32. Qb7 {[%clk 0:01:00]}  Nxc4 {[%clk 0:01:56]} 33. b6 {[%clk 0:00:59]}  Nxb6 {[%clk 0:01:36]} 34. Qxb6 {[%clk 0:00:57]}  Bc3 {[%clk 0:01:35]} 35. Kf1 {[%clk 0:00:46]}  Kg7 {[%clk 0:01:25]} 36. Qb7 {[%clk 0:00:42]}  Bf6 {[%clk 0:01:22]} 37. Qd5 {[%clk 0:00:41]}  Qc1 {[%clk 0:01:20]} 38. Ke2 {[%clk 0:00:38]}  c4 {[%clk 0:01:19]} 39. Qd2 {[%clk 0:00:38]}  Qa3 {[%clk 0:01:16]} 40. Nc2 {[%clk 0:00:35]}  Qb2 {[%clk 0:01:09]} 41. Ne1 {[%clk 0:00:26]}  c3 {[%clk 0:01:06]} 42. Qc2 {[%clk 0:00:26]}  Qb5+ {[%clk 0:01:02]} 43. Kf2 {[%clk 0:00:21]}  Qb2 {[%clk 0:00:51]} 44. Bf4 {[%clk 0:00:20]}  g5 {[%clk 0:00:51]} 45. Bg3 {[%clk 0:00:20]}  Qa1 {[%clk 0:00:47]} 46. Ke2 {[%clk 0:00:19]}  Qa6+ {[%clk 0:00:45]} 47. Nd3 {[%clk 0:00:19]}  e5 {[%clk 0:00:39]} 48. e4 {[%clk 0:00:18]}  d5 {[%clk 0:00:34]} 49. Qxc3 {[%clk 0:00:18]}  dxe4 {[%clk 0:00:31]} 50. fxe4 {[%clk 0:00:18]}  Qa2+ {[%clk 0:00:29]} 51. Qd2 {[%clk 0:00:18]}  Qc4 {[%clk 0:00:28]} 52. Kf3 {[%clk 0:00:17]}  Qb3 {[%clk 0:00:25]} 53. Be1 {[%clk 0:00:16]}  h5 {[%clk 0:00:24]} 54. Qc3 {[%clk 0:00:15]}  Qd1+ {[%clk 0:00:23]} 55. Kf2 {[%clk 0:00:14]}  g4 {[%clk 0:00:21]} 56. hxg4 {[%clk 0:00:12]}  Qxg4 {[%clk 0:00:19]} 57. Kf1 {[%clk 0:00:06]}  Qxe4 {[%clk 0:00:19]} 58. Nf2 {[%clk 0:00:07]}  Qd5 {[%clk 0:00:18]} 59. Qd3 {[%clk 0:00:07]}  Qa2 {[%clk 0:00:17]} 60. Ne4 {[%clk 0:00:07]}  Be7 {[%clk 0:00:12]} 61. Bg3 {[%clk 0:00:07]}  Qa1+ {[%clk 0:00:10]} 62. Kf2 {[%clk 0:00:07]}  f5 {[%clk 0:00:11]} 63. Bxe5+ {[%clk 0:00:06]}  Qxe5 {[%clk 0:00:11]} 64. Ng3 {[%clk 0:00:05]}  Bc5+ {[%clk 0:00:11]} 65. Kf3 {[%clk 0:00:05]}  f4 {[%clk 0:00:06]} 66. Ne4 {[%clk 0:00:03]}  Be7 {[%clk 0:00:05]} 67. Qd7 {[%clk 0:00:03]}  Kg6 {[%clk 0:00:02]} 68. Qe8+ {[%clk 0:00:02]}  Kg7 {[%clk 0:00:02]} 69. Qd7 {[%clk 0:00:02]}  Kg6 {[%clk 0:00:02]} 70. Qe8+ {[%clk 0:00:02]}  Kh7 {[%clk 0:00:03]} 71. Qc6 {[%clk 0:00:02]}  Qa1 {[%clk 0:00:01]} 72. Qd7 {[%clk 0:00:02]} 1-0


[Site "https://www.chess.com"]